bitfinex/quotes_SOLUSD_20241107
["timestamp","ask_amount","ask_price","bid_price","bid_amount"]
[1730989586212,9.79231295,187.79,187.77,0.2]
[1730989586696,9.79231295,187.79,187.78,0.1]
[1730989587288,9.79231295,187.79,187.78,0.2]
[1730989596801,15.6416,187.82,187.81,0.1]
[1730989597003,25.43391295,187.82,187.81,0.1]
[1730989597922,25.43391295,187.82,187.8,0.1]
[1730989598127,9.79231295,187.81,187.8,0.1]
[1730989606242,9.79231295,187.81,187.79,0.2]
[1730989606431,9.79231295,187.8,187.79,0.2]
[1730989608517,9.79231295,187.8,187.78,0.1]
[1730989608834,9.79231295,187.79,187.76,0.1]
[1730989609007,0.12549,187.8,187.74,0.2]
[1730989609333,0.12549,187.8,187.76,0.1]
[1730989609636,9.79231295,187.77,187.74,0.1]
[1730989609803,9.79231295,187.75,187.74,0.1]
[1730989610226,9.79231295,187.75,187.74,0.2]
[1730989610730,9.79231295,187.75,187.74,0.1]
[1730989611125,9.79231295,187.75,187.73,0.1]
[1730989611331,9.79231295,187.74,187.73,0.2]
[1730989613341,23.776884,187.81,187.77,0.1]
[1730989613514,9.79231295,187.78,187.77,0.1]
[1730989614608,23.776884,187.81,187.77,0.1]
[1730989614815,15.6416,187.82,187.77,0.1]
[1730989614816,9.79231295,187.78,187.77,0.2]
[1730989618449,9.79231295,187.78,187.77,0.1]
[1730989621036,9.79231295,187.78,187.76,0.1]
[1730989621340,9.79231295,187.77,187.76,0.1]
[1730989621936,9.79231295,187.77,187.75,0.1]
[1730989622126,9.79231295,187.76,187.73,0.2]
[1730989622343,9.79231295,187.74,187.73,0.2]
[1730989623055,9.79231295,187.74,187.73,0.1]
[1730989623629,9.79231295,187.74,187.73,0.2]
[1730989624356,23.776884,187.78,187.74,0.1]
[1730989625744,9.79231295,187.75,187.72,0.1]
[1730989625957,9.79231295,187.73,187.71,0.1]
[1730989626139,9.79231295,187.72,187.71,0.2]
[1730989626446,9.79231295,187.72,187.71,0.1]
[1730989626644,9.79231295,187.72,187.71,0.2]
[1730989629935,25.12732017,187.78,187.71,0.2]
[1730989630139,26.91344337,187.82,187.66,9.79231295]
[1730989630140,29.101484,187.81,187.76,0.1]
[1730989630454,9.79231295,187.77,187.76,0.1]
[1730989631865,23.776884,187.81,187.78,0.1]
[1730989632044,9.79231295,187.79,187.78,0.1]
[1730989636266,9.79231295,187.79,187.77,0.1]
[1730989636447,9.79231295,187.78,187.77,0.1]
[1730989639261,9.79231295,187.78,187.77,0.2]
[1730989645061,5.3222,187.89,187.84,0.1]
[1730989645361,9.79231295,187.85,187.84,0.1]
[1730989649171,23.776884,187.89,187.86,0.1]
[1730989649367,9.79231295,187.87,187.85,0.1]
[1730989649550,9.79231295,187.86,187.85,0.1]
[1730989649862,9.79231295,187.86,187.84,0.1]
[1730989650172,9.79231295,187.85,187.84,0.1]
[1730989651244,9.79231295,187.85,187.83,0.1]
[1730989651450,9.79231295,187.84,187.83,0.1]
[1730989660387,23.776884,187.89,187.83,0.1]
[1730989660565,23.776884,187.89,187.84,0.1]
[1730989660875,29.099084,187.89,187.84,0.1]
[1730989662272,9.79231295,187.85,187.84,0.1]
[1730989665867,33.56919695,187.85,187.82,0.1]
[1730989666083,9.79231295,187.83,187.82,0.1]
[1730989669078,23.776884,187.82,187.78,0.1]
[1730989669370,9.79231295,187.79,187.78,0.2]
[1730989670552,6.4639,187.84,187.8,0.1]
[1730989670755,6.4639,187.84,187.83,0.1]
[1730989670957,23.776884,187.88,187.83,0.1]
[1730989671651,23.776884,187.88,187.84,0.1]
[1730989671876,9.79231295,187.85,187.84,0.1]
[1730989673082,9.79231295,187.85,187.83,0.2]
[1730989673383,9.79231295,187.84,187.83,0.1]
[1730989673881,9.79231295,187.84,187.83,0.2]
[1730989674086,6.5853,187.89,187.85,0.2]
[1730989674293,9.79231295,187.86,187.85,0.2]
[1730989675387,6.5853,187.89,187.85,0.2]
[1730989675684,23.776884,187.88,187.87,0.1]
[1730989676271,23.776884,187.88,187.86,0.1]
[1730989676472,23.776884,187.88,187.85,0.1]
[1730989676473,23.776884,187.88,187.87,0.1]
[1730989676661,33.56919695,187.88,187.87,0.1]
[1730989677079,33.56919695,187.88,187.86,0.1]
[1730989677283,9.79231295,187.87,187.86,0.1]
[1730989678182,9.79231295,187.87,187.85,0.2]
[1730989678365,9.79231295,187.86,187.85,0.2]
[1730989678762,6.5853,187.89,187.85,0.2]
[1730989678991,6.0192,187.93,187.9,0.1]
[1730989679161,9.79231295,187.91,187.89,0.1]
[1730989679361,39.1692518,187.92,187.89,0.1]
[1730989680189,39.1692518,187.92,187.91,0.1]
[1730989680486,15.1391,187.94,187.91,0.1]
[1730989680674,15.1391,187.94,187.93,0.1]
[1730989681877,48.70829695,187.94,187.93,0.1]
[1730989682475,48.70829695,187.94,187.92,0.1]
[1730989682683,9.79231295,187.93,187.92,0.1]
[1730989684401,9.79231295,187.93,187.91,0.2]
[1730989684572,23.776884,187.95,187.92,0.1]
[1730989684770,9.79231295,187.93,187.91,0.2]
[1730989684995,23.776884,187.95,187.92,0.1]
[1730989685571,23.776884,187.95,187.91,0.2]
[1730989685767,9.79231295,187.92,187.91,0.2]
[1730989686288,6.3209,187.97,187.93,0.1]
[1730989686492,6.3209,187.97,187.92,0.1]
[1730989686696,6.3209,187.97,187.91,0.2]
[1730989686990,6.3209,187.97,187.92,0.1]
[1730989687364,11.6409,187.97,187.92,0.1]
[1730989687683,9.79231295,187.93,187.92,0.1]
[1730989690579,9.79231295,187.93,187.9,0.1]
[1730989690580,23.776884,187.92,187.9,0.1]
[1730989690793,33.56919695,187.91,187.9,0.1]
[1730989692608,9.79231295,187.91,187.9,0.1]
[1730989693687,29.097784,187.94,187.93,0.1]
[1730989693995,6.3209,187.97,187.93,0.1]
[1730989693996,5.3205,187.96,187.93,0.1]
[1730989694297,9.79231295,187.94,187.93,0.1]
[1730989695495,9.79231295,187.94,187.92,0.2]
[1730989695692,23.776884,187.96,187.93,0.1]
[1730989696499,23.776884,187.96,187.93,0.2]
[1730989696674,23.776884,187.96,187.94,0.1]
[1730989696875,23.776884,187.96,187.95,0.1]
[1730989698180,33.56919695,187.96,187.95,0.1]
[1730989698394,23.776884,187.96,187.95,0.1]
[1730989698591,0.5768805,187.99,187.98,0.1]
[1730989698796,10.36919345,187.99,187.98,0.2]
[1730989700090,0.5768805,187.99,187.98,0.2]
[1730989701203,0.5768805,187.99,187.98,0.4]
[1730989701411,0.5768805,187.99,187.98,53.86919695]
[1730989701582,0.5768805,187.99,187.98,0.2]
[1730989703002,0.5768805,187.99,187.98,0.52549]
[1730989703295,0.5768805,187.99,187.98,20.42549]
[1730989703804,0.5768805,187.99,187.98,10.31780295]
[1730989703987,0.5768805,187.99,187.98,0.52549]
[1730989704305,0.5768805,187.99,187.98,0.2]
[1730989710105,10.36919345,187.99,187.98,0.2]
[1730989712309,0.5768805,187.99,187.98,0.2]
[1730989712802,10.36919345,187.99,187.98,0.2]
[1730989714605,0.5768805,187.99,187.98,0.2]
[1730989719014,10.36919345,187.99,187.98,0.2]
[1730989719201,0.5768805,187.99,187.98,0.2]
[1730989734311,0.5768805,187.99,187.98,10.09231295]
[1730989734625,0.5768805,187.99,187.98,0.2]
[1730989735826,0.5768805,187.99,187.98,9.99231295]
[1730989736024,0.5768805,187.99,187.98,10.19231295]
[1730989736222,0.5768805,187.99,187.98,10.09231295]
[1730989736417,0.5768805,187.99,187.98,10.19231295]
[1730989737009,0.5768805,187.99,187.98,190.91780295]
[1730989737205,0.5768805,187.99,187.98,37.16040295]
[1730989738326,0.0768805,187.99,187.98,37.16040295]
[1730989740919,0.0768805,187.99,187.98,30.31780295]
[1730989741307,0.0768805,187.99,187.98,20.52549]
[1730989741504,0.0768805,187.99,187.98,30.31780295]
[1730989742629,0.0768805,187.99,187.98,30.19231295]
[1730989742823,0.0768805,187.99,187.98,9.99231295]
[1730989743222,0.0768805,187.99,187.98,10.09231295]
[1730989743421,0.0768805,187.99,187.98,10.19231295]
[1730989744816,0.0768805,187.99,187.98,9.99231295]
[1730989745022,0.0768805,187.99,187.98,10.09231295]
[1730989747342,0.0768805,187.99,187.98,10.31780295]
[1730989748940,0.0768805,187.99,187.98,54.09468695]
[1730989750046,0.0768805,187.99,187.98,253.86393875]
[1730989750340,15.0876,188.1,188.09,0.2]
[1730989752144,6.12575053,188.18,188.15,0.2]
[1730989752336,6.12575053,188.18,188.06,0.1]
[1730989752337,0.5768805,188.18,188.16,0.2]
[1730989752526,9.79231295,188.17,188.14,0.1]
[1730989752849,9.79231295,188.15,188.14,0.2]
[1730989753019,22.63,188.14,188.12,0.1]
[1730989753217,22.63,188.14,188.11,0.2]
[1730989753427,9.79231295,188.12,188.11,0.1]
[1730989754042,9.79231295,188.1,188.09,0.1]
[1730989754547,9.79231295,188.11,188.1,0.1]
[1730989755351,15.10831295,188.11,188.06,0.1]
[1730989755652,9.79231295,188.07,188.06,0.1]
[1730989756150,22.63,188.14,188.1,0.1]
[1730989756525,22.63,188.14,188.09,0.1]
[1730989756924,27.9452,188.14,188.1,0.1]
[1730989757139,22.63,188.14,188.1,0.1]
[1730989757335,9.79231295,188.11,188.1,0.1]
[1730989758049,22.63,188.14,188.12,0.1]
[1730989758350,9.79231295,188.13,188.12,0.1]
[1730989764545,9.79231295,188.13,188.11,0.1]
[1730989764744,9.79231295,188.12,188.11,0.1]
[1730989767856,9.79231295,188.13,188.11,0.1]
[1730989769458,9.79231295,188.13,188.12,0.1]
[1730989769869,22.63,188.14,188.12,0.1]
[1730989770155,9.79231295,188.13,188.11,0.1]
[1730989770356,9.79231295,188.12,188.1,0.1]
[1730989770560,22.63,188.14,188.11,0.1]
[1730989771547,22.63,188.14,188.13,0.1]
[1730989771745,32.42231295,188.14,188.13,0.1]
[1730989773062,32.42231295,188.14,188.12,0.1]
[1730989773361,9.79231295,188.13,188.12,0.1]
[1730989773659,9.79231295,188.13,188.11,0.1]
[1730989773867,22.63,188.14,188.12,0.1]
[1730989774157,22.63,188.14,188.1,0.1]
[1730989774546,22.63,188.14,188.11,0.1]
[1730989774956,22.63,188.14,188.12,0.1]
[1730989775261,26.03471295,188.14,188.13,0.1]
[1730989776146,9.79231295,188.14,188.13,0.1]
[1730989779159,17.2129805,188.18,188.16,0.1]
[1730989779357,9.79231295,188.17,188.15,0.1]
[1730989779557,17.2129805,188.18,188.15,0.1]
[1730989779755,17.2129805,188.18,188.16,0.1]
[1730989780060,22.5270805,188.18,188.13,0.1]
[1730989780261,9.79231295,188.14,188.12,0.1]
[1730989780445,6.4981,188.16,188.15,0.1]
[1730989780650,16.29041295,188.16,188.15,0.1]
[1730989781242,16.29041295,188.16,188.14,0.1]
[1730989781443,9.79231295,188.15,188.14,0.1]
[1730989784352,6.4981,188.16,188.14,0.1]
[1730989784562,9.79231295,188.16,188.15,0.1]
[1730989785766,9.79231295,188.16,188.14,0.1]
[1730989785958,9.79231295,188.16,188.15,0.1]
[1730989794161,9.79231295,188.16,188.14,0.1]
[1730989794362,9.79231295,188.16,188.15,0.1]
[1730989794570,9.79231295,188.16,188.09,9.89231295]
[1730989794571,9.79231295,188.16,188.14,0.1]
[1730989794777,9.79231295,188.16,188.15,0.1]
[1730989798179,9.79231295,188.16,188.13,0.1]
[1730989798365,5.3145,188.17,188.15,0.1]
[1730989799456,9.79231295,188.16,188.11,0.1]
[1730989799659,9.79231295,188.12,188.11,0.1]
[1730989800376,16.3899,188.15,188.11,0.1]
[1730989800680,16.3899,188.15,188.06,9.79231295]
[1730989800681,16.3899,188.15,188.13,0.1]
[1730989800985,9.79231295,188.14,188.13,0.1]
[1730989801165,9.79231295,188.14,188.12,0.1]
[1730989801362,9.79231295,188.13,188.11,0.1]
[1730989801562,21.7048,188.15,188.11,0.1]
[1730989801765,16.3899,188.15,188.13,0.1]
[1730989802282,0.5768805,188.18,188.14,0.1]
[1730989802982,0.5768805,188.18,188.15,0.1]
[1730989803157,9.79231295,188.16,188.15,0.1]
[1730989804381,0.5768805,188.18,188.17,0.1]
[1730989804574,10.36919345,188.18,188.17,0.1]
[1730989804967,10.36919345,188.18,188.15,0.1]
[1730989805169,0.5768805,188.18,188.17,0.1]
[1730989805380,0.5768805,188.18,188.15,0.1]
[1730989805569,10.36919345,188.18,188.17,0.1]
[1730989805883,0.5768805,188.18,188.17,0.1]
[1730989806891,10.36919345,188.18,188.17,0.1]
[1730989807061,0.5768805,188.18,188.17,0.1]
[1730989807456,0.5768805,188.18,188.17,9.89231295]
[1730989807875,0.5768805,188.18,188.17,0.1]
[1730989809464,10.36919345,188.18,188.17,0.1]
[1730989809982,0.5768805,188.18,188.17,0.1]
[1730989811589,10.36919345,188.18,188.17,0.1]
[1730989812667,0.5768805,188.18,188.17,0.1]
[1730989812869,10.36919345,188.18,188.17,0.1]
[1730989816596,0.5768805,188.18,188.17,0.1]
[1730989816977,10.36919345,188.18,188.17,0.1]
[1730989818274,0.5768805,188.18,188.17,0.1]
[1730989824291,0.5768805,188.18,188.17,0.2]
[1730989827609,0.5768805,188.18,188.17,0.1]
[1730989828401,0.5768805,188.18,188.17,0.2]
[1730989829296,0.5768805,188.18,188.17,0.1]
[1730989829595,0.5768805,188.18,188.17,0.2]
[1730989830597,0.5768805,188.18,188.17,9.99231295]
[1730989830798,0.5768805,188.18,188.17,10.21780295]
[1730989830988,0.5768805,188.18,188.17,53.99468695]
[1730989831799,0.5768805,188.18,188.17,94.22619592]
[1730989832100,0.5768805,188.18,188.17,55.05694412]
[1730989832306,0.5768805,188.18,188.17,53.99468695]
[1730989833089,0.5768805,188.18,188.17,55.05686009]
[1730989833285,0.5768805,188.18,188.17,94.22611189]
[1730989833588,54.8326518,188.37,188.33,0.1]
[1730989833905,9.79231295,188.34,188.32,0.1]
[1730989834205,5.8859805,188.36,188.33,0.1]
[1730989834408,5.8858805,188.36,188.32,0.1]
[1730989834607,9.79231295,188.33,188.31,0.1]
[1730989834786,6.5979,188.33,188.3,0.1]
[1730989834989,6.5979,188.33,188.31,0.1]
[1730989835201,9.79231295,188.32,188.31,0.1]
[1730989835907,9.79231295,188.32,188.3,0.1]
[1730989836136,6.5979,188.33,188.31,0.1]
[1730989836412,9.79231295,188.32,188.31,0.1]
[1730989837906,9.79231295,188.32,188.3,0.1]
[1730989838098,6.5979,188.33,188.31,0.1]
[1730989838602,6.5979,188.33,188.32,0.1]
[1730989839410,16.39021295,188.33,188.32,0.1]
[1730989839717,16.39021295,188.33,188.3,0.1]
[1730989839892,9.79231295,188.31,188.29,0.1]
[1730989840090,11.9079,188.33,188.28,0.1]
[1730989840316,15.1534,188.3,188.28,0.1]
[1730989840490,15.1534,188.3,188.29,0.1]
[1730989841513,24.94571295,188.3,188.29,0.1]
[1730989841817,9.79231295,188.31,188.3,0.1]
[1730989842505,6.5979,188.33,188.3,0.1]
[1730989842706,6.5979,188.33,188.31,0.1]
[1730989843009,6.5979,188.33,188.23,160.7]
[1730989843010,9.79231295,188.32,188.3,0.1]
[1730989843309,11.9077,188.33,188.3,0.1]
[1730989844082,9.79231295,188.31,188.28,0.1]
[1730989844300,11.9077,188.33,188.29,0.1]
[1730989844994,6.5979,188.33,188.29,0.1]
[1730989845197,6.5979,188.33,188.3,0.1]
[1730989845515,9.79231295,188.31,188.3,0.1]
[1730989845891,6.5979,188.33,188.3,0.1]
[1730989846090,15.7502,188.34,188.33,0.1]
[1730989846289,25.54251295,188.34,188.33,0.1]
[1730989848798,0.5768805,188.36,188.33,0.1]
[1730989849017,9.79231295,188.34,188.33,0.1]
[1730989850621,0.5768805,188.36,188.34,0.1]
[1730989850821,9.79231295,188.35,188.34,0.1]
[1730989851613,0.5768805,188.36,188.34,0.1]
[1730989851821,9.79231295,188.35,188.34,0.1]
[1730989853206,0.5768805,188.36,188.35,0.1]
[1730989853414,10.36919345,188.36,188.35,0.1]
[1730989853806,0.5768805,188.36,188.35,0.1]
[1730989856332,10.36919345,188.36,188.35,0.1]
[1730989856533,0.5768805,188.36,188.35,0.1]
[1730989858410,0.5768805,188.36,188.35,9.89231295]
[1730989858707,0.5768805,188.36,188.35,9.99231295]
[1730989859129,0.5768805,188.36,188.35,9.89231295]
[1730989859314,0.5768805,188.36,188.35,9.99231295]
[1730989859903,0.5768805,188.36,188.35,9.89231295]
[1730989860126,0.5768805,188.36,188.35,0.1]
[1730989862004,0.5768805,188.36,188.35,9.89231295]
[1730989863130,0.5768805,188.36,188.35,15.20151295]
[1730989863421,0.5768805,188.36,188.35,15.30151295]
[1730989863614,0.5768805,188.36,188.35,199.90388695]
[1730989863810,0.5768805,188.36,188.35,5.4092]
[1730989864005,10.36919345,188.36,188.35,5.4092]
[1730989864205,0.5768805,188.36,188.35,5.4092]
[1730989864830,10.36919345,188.36,188.35,5.4092]
[1730989866310,0.5768805,188.36,188.35,5.4092]
[1730989866518,10.36919345,188.36,188.34,13.3736]
[1730989866717,9.79231295,188.35,188.34,13.2736]
[1730989867335,9.79231295,188.35,188.24,0.1]
[1730989867336,16.0653,188.34,188.3,0.1]
[1730989867515,25.85761295,188.34,188.3,0.1]
[1730989867719,25.85761295,188.34,188.31,0.1]
[1730989867919,9.79231295,188.32,188.31,0.1]
[1730989868125,9.79231295,188.32,188.22,5.64183702]
[1730989868126,9.79231295,188.32,188.29,0.1]
[1730989868327,9.79231295,188.3,188.27,0.1]
[1730989868531,5.3099,188.33,188.26,0.1]
[1730989868731,5.3099,188.33,188.25,0.1]
[1730989869035,9.79231295,188.26,188.25,0.1]
[1730989870028,9.79231295,188.26,188.17,15.43583267]
[1730989870029,37.79414959,188.26,188.23,0.1]
[1730989870336,15.24254959,188.24,188.2,0.1]
[1730989870508,15.24254959,188.21,188.2,0.1]
[1730989872522,15.24254959,188.21,188.19,0.1]
[1730989872709,15.24254959,188.2,188.19,0.1]
[1730989880815,15.3941,188.19,188.18,0.1]
[1730989881123,45.87919918,188.19,188.18,0.1]
[1730989882715,15.3941,188.19,188.18,0.1]
[1730989882939,30.63664959,188.19,188.18,0.1]
[1730989883126,45.87919918,188.19,188.18,0.1]
[1730989883428,45.87919918,188.19,188.13,0.1]
[1730989883631,15.24254959,188.14,188.13,0.1]
[1730989885328,15.24254959,188.16,188.14,0.1]
[1730989885634,15.24254959,188.17,188.14,0.1]
[1730989885813,15.24254959,188.17,188.16,0.1]
[1730989889615,15.24254959,188.19,188.18,0.1]
[1730989889817,15.24254959,188.22,188.21,0.1]
[1730989890122,15.24254959,188.23,188.22,0.1]
[1730989891342,9.75379214,188.25,188.23,0.1]
[1730989891640,9.75379214,188.25,188.24,0.1]
[1730989893645,26.15979214,188.28,188.25,0.1]
[1730989893817,15.23484639,188.28,188.25,0.1]
[1730989894136,15.23484639,188.3,188.29,0.1]
[1730989895318,15.23484639,188.31,188.29,0.1]
[1730989895525,15.23484639,188.31,188.3,0.1]
[1730989896043,0.5768805,188.36,188.35,0.1]
[1730989896349,15.81172689,188.36,188.35,0.1]
[1730989897642,0.5768805,188.36,188.35,0.1]
[1730989898236,15.81172689,188.36,188.35,0.1]
[1730989898635,0.5768805,188.36,188.35,0.1]
[1730989898830,15.81172689,188.36,188.35,0.1]
[1730989899947,0.5768805,188.36,188.35,0.1]
[1730989900338,15.81172689,188.36,188.35,0.1]
[1730989906835,15.81172689,188.36,188.34,0.1]
[1730989907039,15.23484639,188.35,188.33,0.1]
[1730989907240,15.23484639,188.34,188.32,0.1]
[1730989907450,15.23484639,188.33,188.32,0.1]
[1730989908233,0.5768805,188.36,188.35,0.1]
[1730989908536,15.81172689,188.36,188.35,0.1]
[1730989908942,15.81172689,188.36,188.34,18.6831]
[1730989909144,15.23484639,188.35,188.34,18.6831]
[1730989909359,15.23484639,188.35,188.33,0.1]
[1730989909533,15.23484639,188.34,188.32,5.4098]
[1730989909735,15.23484639,188.33,188.32,5.4098]
[1730989915340,15.23484639,188.33,188.32,0.1]
[1730989915535,15.23484639,188.33,188.31,0.1]
[1730989915735,15.23484639,188.32,188.31,0.1]
[1730989915939,15.23484639,188.32,188.29,0.1]
[1730989916247,15.23484639,188.3,188.29,0.1]
[1730989917348,15.23484639,188.3,188.28,0.1]
[1730989917547,15.23484639,188.29,188.28,0.1]
[1730989920938,15.23484639,188.29,188.27,0.1]
[1730989921168,15.23484639,188.28,188.27,0.1]
[1730989921348,9.75257737,188.28,188.27,0.1]
[1730989921543,9.75257737,188.28,188.26,0.1]
[1730989921755,5.3101,188.32,188.27,0.1]
[1730989921941,28.0486,188.33,188.27,0.1]
[1730989922347,22.7186,188.33,188.3,0.1]
[1730989922848,9.75257737,188.31,188.3,0.1]
[1730989923049,9.75257737,188.31,188.27,0.1]
[1730989923257,28.0284,188.33,188.28,0.1]
[1730989923460,28.0284,188.33,188.3,0.1]
[1730989923761,28.0284,188.33,188.27,0.1]
[1730989923953,9.75257737,188.28,188.27,0.1]
[1730989924837,28.0284,188.33,188.3,0.1]
[1730989924838,22.7186,188.33,188.3,0.1]
[1730989925040,9.75257737,188.31,188.3,0.1]
[1730989925550,22.7186,188.33,188.3,0.1]
[1730989925733,9.75257737,188.31,188.3,0.1]
[1730989926448,0.6768805,188.36,188.22,160.72549]
[1730989926449,11.42885491,188.36,188.31,0.1]
[1730989926644,11.42885491,188.36,188.35,0.1]
[1730989926645,6.11995491,188.36,188.35,0.1]
[1730989926966,10.32945787,188.36,188.35,0.1]
[1730989927943,10.32945787,188.36,188.34,0.1]
[1730989928256,10.32945787,188.36,188.33,0.1]
[1730989928257,9.75257737,188.35,188.33,0.1]
[1730989928448,0.5768805,188.36,188.35,0.1]
[1730989929156,10.32945787,188.36,188.34,0.1]
[1730989929360,0.5768805,188.36,188.35,0.1]
[1730989929565,10.32945787,188.36,188.35,0.1]
[1730989930240,0.5768805,188.36,188.35,0.1]
[1730989930739,10.32945787,188.36,188.35,0.1]
[1730989931256,10.32945787,188.36,188.34,0.1]
[1730989931566,15.22570292,188.35,188.34,0.1]
[1730989933763,15.80258342,188.36,188.35,0.1]
[1730989934763,0.5768805,188.36,188.35,0.1]
[1730989936356,15.80258342,188.36,188.35,0.1]
[1730989936860,15.80258342,188.36,188.33,0.1]
[1730989937161,15.22570292,188.34,188.32,0.1]
[1730989937371,15.22570292,188.33,188.31,0.1]
[1730989937667,15.22570292,188.32,188.3,0.1]
[1730989937955,15.22570292,188.31,188.3,0.1]
[1730989938463,15.22570292,188.31,188.28,0.1]
[1730989938658,15.22570292,188.29,188.27,0.1]
[1730989938963,5.3103,188.32,188.29,0.1]
[1730989941143,15.22570292,188.23,188.22,0.1]
[1730989941343,15.22570292,188.23,188.2,0.1]
[1730989941569,15.22570292,188.21,188.2,0.1]
[1730989942654,15.22570292,188.21,188.19,0.1]
[1730989942967,21.599,188.27,188.2,0.1]
[1730989943465,15.22570292,188.21,188.2,0.1]
[1730989948148,16.1875,188.27,188.2,0.1]
[1730989948451,16.1875,188.27,188.26,0.1]
[1730989949461,31.41320292,188.27,188.26,0.1]
[1730989952872,31.41320292,188.27,188.24,0.1]
[1730989953169,15.22570292,188.25,188.21,0.1]
[1730989953363,15.22570292,188.22,188.2,0.1]
[1730989953673,21.599,188.27,188.21,0.1]
[1730989953853,21.599,188.27,188.2,0.1]
[1730989954052,15.22570292,188.21,188.2,0.1]
[1730989954974,16.3232,188.2,188.19,0.1]
[1730989955149,46.77460584,188.2,188.19,0.1]
[1730989955349,31.54890292,188.2,188.19,0.1]
[1730989956069,15.22570292,188.2,188.19,0.1]
[1730989958855,15.22570292,188.21,188.19,0.1]
[1730989960178,15.22570292,188.2,188.19,0.1]
[1730989960469,30.45140584,188.2,188.19,0.1]
[1730989961467,15.22570292,188.2,188.19,0.1]
[1730989962461,15.22570292,188.2,188.16,0.1]
[1730989962775,15.22570292,188.17,188.16,0.1]
[1730989967261,15.22570292,188.19,188.16,0.1]
[1730989967488,15.22570292,188.2,188.19,0.1]
[1730989967864,15.22570292,188.2,188.13,0.1]
[1730989967865,15.22570292,188.21,188.2,0.1]
[1730989968566,15.22570292,188.23,188.22,0.1]
[1730989969576,15.22570292,188.24,188.22,0.1]
[1730989970176,15.22570292,188.24,188.23,0.1]
[1730989971458,15.22570292,188.25,188.24,0.1]
[1730989973164,15.22570292,188.25,188.22,0.1]
[1730989973382,15.22570292,188.23,188.22,0.1]
[1730989974489,15.22570292,188.23,188.21,0.1]
[1730989974662,15.22570292,188.23,188.15,21.61180292]
[1730989974663,15.22570292,188.28,188.22,0.1]
[1730989974865,15.22570292,188.28,188.23,0.1]
[1730989975375,15.22570292,188.28,188.22,0.1]
[1730989975576,15.22570292,188.28,188.23,0.1]
[1730989975875,15.22570292,188.24,188.23,0.1]
[1730989977266,15.22570292,188.24,188.21,0.1]
[1730989977468,15.22570292,188.28,188.23,0.1]
[1730989977680,15.22570292,188.28,188.25,0.1]
[1730989978764,15.22570292,188.28,188.22,0.1]
[1730989978964,15.22570292,188.28,188.16,0.22549]
[1730989978965,15.22570292,188.28,188.25,0.1]
[1730989979161,15.22570292,188.26,188.24,0.1]
[1730989979477,15.22570292,188.28,188.25,0.1]
[1730989979784,15.22570292,188.28,188.26,0.1]
[1730989980185,20.53690292,188.28,188.23,0.1]
[1730989980377,15.22570292,188.24,188.23,0.1]
[1730989980685,15.22570292,188.24,188.22,0.1]
[1730989980863,15.22570292,188.24,188.23,0.1]
[1730989981479,15.22570292,188.24,188.22,0.1]
[1730989982070,15.22570292,188.23,188.22,0.1]
[1730989982268,15.22570292,188.23,188.16,0.12549]
[1730989982269,15.22570292,188.23,188.2,0.1]
[1730989982493,15.22570292,188.21,188.2,0.1]
[1730989982878,15.22570292,188.21,188.19,0.1]
[1730989983098,15.22570292,188.2,188.19,0.1]
[1730989985978,5.3116,188.27,188.2,0.1]
[1730989985979,15.22570292,188.21,188.2,0.1]
[1730989989784,15.22570292,188.21,188.19,0.1]